Cogmind - Beta 9.6 @@@ ROGUE MODE // 2020.06.04 @ 20:07:17 Player: RNGesus Result: Destroyed by D-53 Grenadier with Mini Grenade Launcher Performance ------------- Evolutions (0) 0 Regions Visited (2) 400 Robots Destroyed (28) 140 Value Destroyed (310) 310 Prototype IDs (0) 0 Alien Tech Used (0) 0 Bonus (-43) -43 TOTAL SCORE: 807 Bonus ------- Friendly Fire -43 Cogmind --------- Core Integrity 0/250 Matter 262/300 Energy 170/250 System Corruption 0% Temperature Cool (0) Movement Treading (180) Ox1 Location -10/Mines Parts ------- > --- POWER (1) -------- Ion Engine > --- PROPULSION (2) --- Improved Treads Aluminum Leg > --- UTILITY (2) ------ Large Storage Unit Large Storage Unit > --- WEAPON (2) ------- EMP Blaster > --- INVENTORY (16) --- Light Ion Engine Improved Treads Improved Treads Improved Treads Compact Wheel Medium Storage Unit Medium Armor Plating Medium Armor Plating Hacking Suite Light Assault Rifle Light Assault Rifle Light Assault Rifle EMP Blaster Mini Grenade Launcher Peak State ------------ > --- POWER ------------ Ion Engine > --- PROPULSION ------- Aluminum Leg Aluminum Leg > --- UTILITY ---------- Large Storage Unit Large Storage Unit > --- WEAPON ----------- EM Pulse Gun EMP Blaster > --- INVENTORY -------- Ion Engine Light Ion Engine Improved Treads Improved Treads Improved Treads Improved Treads Compact Wheel Medium Storage Unit Medium Armor Plating Medium Armor Plating Hacking Suite Light Assault Rifle Light Assault Rifle Light Assault Rifle EMP Blaster EMP Blaster [Rating: 10] Favorites ----------- Power Ion Engine Engine Ion Engine Propulsion Aluminum Leg Treads Improved Treads Leg Aluminum Leg Utility Large Storage Unit Storage Large Storage Unit Weapon Light Assault Rifle Energy Gun EM Pulse Gun Ballistic Gun Light Assault Rifle Launcher EMP Blaster Build | -11 -10 -10 ------- Run | Scr Mat Min Slots Evolved . | . . . Power . | . . . Propulsion . | . . . Utility . | . . . Weapon . | . . . Parts Attached 19 | 6 9 4 Power 3 | 1 1 1 Engine 3 | 1 1 1 Core . | . . . Reactor . | . . . Propulsion 5 | 2 2 1 Treads 1 | . . 1 Leg 4 | 2 2 . Wheel . | . . . Hover . | . . . Flight . | . . . Utility 5 | 1 4 . Device . | . . . Storage 5 | 1 4 . Processor . | . . . Hackware . | . . . Protection . | . . . Artifact . | . . . Weapon 6 | 2 2 2 Energy Gun 1 | . 1 . Energy Cannon . | . . . Ballistic Gun 3 | 2 1 . Ballistic Cannon . | . . . Launcher 2 | . . 2 Special Weapon . | . . . Impact Weapon . | . . . Slashing Weapon . | . . . Piercing Weapon . | . . . Special Melee Weapon . | . . . Unidentified Prototypes . | . . . Parts Lost 7 | . 3 4 Power 2 | . 1 1 Propulsion 1 | . . 1 Utility . | . . . Weapon 4 | . 2 2 Highest Loss Streak 2 | . 1 2 Average Slot Usage (%) 93 | . 96 85 Engine 14 | . 14 14 Leg 27 | . 28 27 Storage 25 | . 24 28 Energy Gun 3 | . 3 1 Ballistic Gun 18 | . 24 . Launcher 3 | . . 14 Naked Turns . | . . . Heaviest Build 43 | 10 40 43 Greatest Support 20 | 20 20 20 Greatest Overweight (x) 2 | 1 1 2 Average Overweight (x) . | . . 1 Largest Inventory Capacity 16 | 6 16 16 Average Capacity 13 | 5 12 16 Most Carried 16 | 3 16 16 Average Carried 9 | 1 7 15 Final Capacity 16 | 6 16 16 Final Carried 16 | 3 16 14 Class Distribution -------------------- 100% | Mutant Dominant Class ---------------- Mutant | -10/Materials Mutant | -10/Mines Resources | -11 -10 -10 ----------- Run | Scr Mat Min Matter Collected 543 | 177 295 71 Remotely . | . . . Salvage Created 593 | . 414 179 Parts 37 | . 37 . Haulers Intercepted 1 | . 1 . Recyclers Shooed . | . . . Parts Field Recycled . | . . . Retrieved Matter . | . . . Parts Self-Destructed . | . . . Prevented . | . . . Kills | -11 -10 -10 ------- Run | Scr Mat Min Combat Hostiles Destroyed 24 | . 14 10 Guns 14 | . 14 . AOE 10 | . . 10 Classes Destroyed 5 | . 4 1 Hauler 1 | . 1 . Operator 3 | . 3 . Swarmer 9 | . 9 . Grunt 5 | . 5 . Assembled 10 | . . 10 Best Kill Streak 10 | . 3 10 Combat Bots Only 10 | . 3 10 Max Kills in Single Turn 4 | . 1 4 Gunslinging . | . . . Exploded 4 | . . 4 Melee . | . . . Uniques/NPCs Destroyed . | . . . Combat | -11 -10 -10 -------- Run | Scr Mat Min Damage Taken 1053 | . 537 516 Core 296 | . 96 200 Absorbed by Shields . | . . . Core Remaining (%) 100 | 100 . . Volleys Fired 70 | . 61 9 Largest 2 | . 2 2 Hottest 73 | . 60 73 Shots Fired 130 | . 120 10 Gun 122 | . 120 2 Cannon . | . . . Launcher 8 | . . 8 Special . | . . . Kinetic 110 | . 110 . Thermal . | . . . Explosive . | . . . Electromagnetic 20 | . 10 10 Robot Hit Streak 10 | . 10 3 Robot Miss Streak 4 | . 4 3 Penetration Max . | . . . Secondary Targets 1 | . 1 . Max Gunslinging Chain 1 | . 1 . Shots Hit Robots 74 | . 68 6 Core Hits 61 | . 28 33 Critical Hits . | . . . Critical Kills . | . . . Critical Parts Destroyed . | . . . Melee Attacks . | . . . Impact . | . . . Slashing . | . . . Piercing . | . . . Sneak Attacks . | . . . Combat Hostiles . | . . . Follow-up Attacks . | . . . Damage Inflicted 1485 | . 655 830 Guns 655 | . 655 . Cannons . | . . . Explosions 830 | . . 830 Melee . | . . . Ramming . | . . . Kinetic 557 | . 557 . Thermal 115 | . . 115 Explosive . | . . . Electromagnetic 813 | . 98 715 Impact . | . . . Slashing . | . . . Piercing . | . . . Highest Corruption . | . . . Average Corruption . | . . . Corruption Purged . | . . . Overload Shots . | . . . Overflow Damage 4 | . . 4 Projectiles . | . . . Explosions 4 | . . 4 Melee . | . . . Knockbacks . | . . . Impact . | . . . Kinetic . | . . . Secondary . | . . . Self-Inflicted Damage . | . . . Shots . | . . . Rammed . | . . . Targets Rammed . | . . . Kicked . | . . . Crushed . | . . . Highest Temperature 40 | . 40 32 Average Temperature 16 | . 16 17 Received Heat Transfer 132 | . 72 60 Siege Activations . | . . . Robots Corrupted . | . . . Combat Hostiles . | . . . Parts Fried 1 | . 1 . Impact Corruptions . | . . . Robots Melted . | . . . Combat Hostiles . | . . . Parts Melted . | . . . Heat Transferred 200 | . . 200 Parts Sabotaged . | . . . Parts Stolen . | . . . Parts Stripped . | . . . Power Chain Reactions 1 | . . 1 Missiles Intercepted . | . . . Alert | -11 -10 -10 ------- Run | Scr Mat Min Peak Influence 258 | . 258 28 Average Influence 92 | . 120 9 Maximum Alert Level 1 | . 1 . Low Security (%) 86 | 100 81 100 Level 1 13 | . 18 . Level 2 . | . . . Level 3 . | . . . Level 4 . | . . . Level 5 . | . . . High Security . | . . . Max Security . | . . . Squads Dispatched 4 | . 4 . Investigation 1 | . 1 . Extermination . | . . . Reinforcement 3 | . 3 . Assault . | . . . Garrison . | . . . Intercept . | . . . Construction Impeded . | . . . Haulers Reinforced . | . . . Stealth | -11 -10 -10 --------- Run | Scr Mat Min Distress Signals 2 | . 2 . Communications Jammed . | . . . Distress Signals . | . . . Times Spotted 56 | . 33 23 Peak Tracking Total 20 | . 6 20 Tactical Retreats 3 | . 1 2 Traps | -11 -10 -10 ------- Run | Scr Mat Min Traps Triggered 1 | . 1 . Indirectly . | . . . Trap Hack Attempts . | . . . Triggered . | . . . Disarmed . | . . . Reprogrammed . | . . . Reused . | . . . Traps Extracted . | . . . Installed . | . . . Triggered . | . . . Machines | -11 -10 -10 ---------- Run | Scr Mat Min Machines Disabled . | . . . Max in Single Turn . | . . . Machines Sabotaged . | . . . Garrisons Compromised . | . . . Overloaded Fab Kills . | . . . Fab Network Shutdowns . | . . . Hacking | -11 -10 -10 --------- Run | Scr Mat Min Machines Accessed 2 | . 2 . Terminals 2 | . 2 . Fabricators . | . . . Repair Stations . | . . . Recycling Units . | . . . Scanalyzers . | . . . Garrison Access . | . . . Total Hacks 5 | . 5 . Successful 2 | . 2 . Failed 3 | . 3 . Catastrophic . | . . . Database Lockouts . | . . . Manual 5 | . 5 . Terminals 5 | . 5 . Fabricators . | . . . Repair Stations . | . . . Recycling Units . | . . . Scanalyzers . | . . . Garrison Access . | . . . Terminal Hacks 1 | . 1 . Terminal Index 1 | . 1 . Fabricator Hacks . | . . . Repair Station Hacks . | . . . Recycling Unit Hacks . | . . . Scanalyzer . | . . . Garrison Access Hacks . | . . . Unauthorized Hacks 1 | . 1 . Terminals 1 | . 1 . Operators 1 | . 1 . Fabricators . | . . . Repair Stations . | . . . Recycling Units . | . . . Scanalyzers . | . . . Garrison Access . | . . . Data Cores Recovered . | . . . Used . | . . . Hacking Detections 1 | . 1 . Full Trace Events . | . . . Feedback Events . | . . . Feedback Blocked . | . . . Robot Schematics Acquired . | . . . Robots Built . | . . . Matter . | . . . Time . | . . . Total Robot Build Rating . | . . . Part Schematics Acquired . | . . . Parts Built . | . . . Matter . | . . . Time . | . . . Total Part Build Rating . | . . . Parts Repaired . | . . . Time . | . . . Parts Recycled . | . . . Recycled Matter . | . . . Retrieved Matter . | . . . Retrieved Components . | . . . Parts Scanalyzed . | . . . Part Schematics Acquired . | . . . Parts Damaged . | . . . Bothacking | -11 -10 -10 ------------ Run | Scr Mat Min Used RIF Installer . | . . . Robots Hacked . | . . . Non-combat . | . . . Combat . | . . . Robot Hacks Applied . | . . . Relay Couplers Released . | . . . Robots Rewired . | . . . Allies Hacked . | . . . Hacks Repelled . | . . . Allies | -11 -10 -10 -------- Run | Scr Mat Min Total Allies . | . . . Largest Group . | . . . Highest-Rated Group . | . . . Highest-Rated Ally . | . . . Total Orders . | . . . Ally Attacks . | . . . Total Damage . | . . . Kills . | . . . Allies Corrupted . | . . . Allies Melted . | . . . Intel | -11 -10 -10 ------- Run | Scr Mat Min Robot Analysis Total . | . . . Derelict Logs Recovered 1 | . . 1 Drone Launches . | . . . Drone Recoveries . | . . . Exploration | -11 -10 -10 ------------- Run | Scr Mat Min Turns Passed 1220 | 60 910 250 Spaces Moved 653 | 43 485 125 Core 8 | 8 . . Treads . | . . . Legs 645 | 35 485 125 Wheels . | . . . Hover . | . . . Flight . | . . . Fastest Speed 50 | 50 120 150 Average Speed 144 | 112 138 179 Slowest Speed 180 | 120 150 180 Overloaded Moves . | . . . Propulsion Burnouts . | . . . Robots Hopped . | . . . Cave-ins Triggered . | . . . Exploration Rate (%) 38 | 3 73 39 Regions Visited 2 Branch Regions 1 Pre-discovered Areas . | . . . Known Exits Taken . | . . . Unknown Exits Taken 2 | 1 1 . Scrap Searched . | . . . Spaces Dug . | . . . Terrain Destroyed 5 | . . 5 Melee . | . . . Projectile . | . . . AOE 5 | . . 5 Actions | -11 -10 -10 --------- Run | Scr Mat Min Total 809 | 51 619 139 Wait 33 | . 33 . Move 651 | 42 484 125 Hop . | . . . Pick Up 25 | 3 21 1 Fast Attach 8 | 6 2 . Attach 6 | . 3 3 Detach 1 | . 1 . Swap 5 | . 4 1 Drop 10 | . 10 . Fire 70 | . 61 9 Melee . | . . . Ram . | . . . Kick . | . . . Crush . | . . . Escape Stasis . | . . . Rewire . | . . . Trap . | . . . Miscellaneous . | . . . Route ------- -11/Scrapyard -10/Materials (discovered 3 exits: [*Mat] / [*Min x2]) -10/Mines History --------- Turn | Location | Event 18 | -11/Scrapyard | Discovered new exit (range 16) 61 | -11/Scrapyard | Entered Materials 274 | -10/Materials | Discovered new exit (range 8) 311 | -10/Materials | Build established: Mutant 368 | -10/Materials | Discovered new exit (range 15) 617 | -10/Materials | Discovered new exit (range 11) 971 | -10/Materials | Entered Mines 972 | -10/Mines | Assembled infested the area 977 | -10/Mines | Assisted by a Guerilla fighting off Assembled 992 | -10/Mines | Core integrity fell below 50% 1002 | -10/Mines | Destroyed 10 combat bots 1186 | -10/Mines | Learned 8 Materials zone layouts 1220 | -10/Mines | Core integrity fell below 20% 1221 | -10/Mines | Destroyed by D-53 Grenadier with Mini Grenade Launcher Last Messages --------------- 01025_ The unstable cave ceiling collapses. 01025_ K-01 Serf collects debris. 01025_ U-05 Engineer builds a Wall. 01026_ Acquired 13 matter. 01029_ U-05 Engineer lays Concrete. 01030_ U-05 Engineer builds a Wall. 01034_ K-01 Serf collects debris. 01035_ U-05 Engineer lays Concrete. 01039_ U-05 Engineer builds a Wall. 01039_ K-01 Serf collects debris. 01186_ Acquired derelict log, extracted data. Data stored: Materials zone layouts (x8). 01191_ K-01 Serf collects debris. 01209_ as-10910 destroyed. 01211_ K-01 Serf collects debris. 01215_ EMP Blaster destroyed. 01215_ K-01 Serf collects debris. 01217_ Aluminum Leg destroyed. 01218_ K-01 Serf collects debris. 01219_ T-07 Excavator destroyed. Map ----- +----------------------------------------------------+ | ?????????????????????????????????????## #### | | ?????????????????????????????????????# ## | | ?????????????????????????????????????# | | ????????????????????????############## | | ????????????????????????# | | ????????????????????????# ############ | | ????????????????????????# #??????????#### | | ????????????????????????# #?????????????## | | ????????????????????????# #??????????????# | | ????????????????????????# #??????????????# | | ????????????????????????# #??????????????# | | ????????????????????????# #??????????????## | | ????????????????????????# #???????????????## | | ????????????????????????# #???????????????## | | ????????????????????????# #??????????????## | | ??????????????????????### #??????????????# | | ?????????????????????## #??????????????## # # | | ?????????????????????# #???????????????# #### | | ?????????????????????# ##???????????#### #??? | | ?????????????????????## k #???????????# #??? | | ??????????????????????## #???????????# ## #??? | | ?????????????????????#### ##??????????# ## #??? | | ?????????????????????# ##?????????# ## #??? | | ?????????????????????# #????????## # #### | | ?????????????????????# #????????# | | ?????????????????????# @ #???????## | | ??????????????????# * #??????## ### | | ?????????????????# ##?????## ##?? | | ?????????????? #????## ######??? | | ???????????# ###### ##???????? | | ????????????##### d #????????? | | ???????????????# % #????????? | | ??????????????# ## ### #### #????????? | | ??????????????# #?## #?# #??# ##????????? | | ?????????????t k???# #???#??# ##?????????? | | ?????????????? ????### ###??????# #??????????? | | ?????????????? ???????###?????????# #??????????? | | ???????????????????????????????????# #??????????? | | ???????????????????????????????????# ####???????? | | ???????????????????????????????????# #???????? | | ???????????????????????????????????# #???????? | | ???????????????????????????????????#### ######### | | ??????????????????????????????????????# # | | ??????????????????????????????????????######### # | | ??????????????????????????????????????????????# # | | ??????????????????????????????????????????????# # | | ??????????????????????????????????????????????# # | | ??????????????????????????????????????????????# | | ??????????????????????????????????????????????## | | ???????????????????????????????????????????????### | +----------------------------------------------------+ Best States ------------- Heat Dissipation 25 Energy Generation 10 Energy Capacity 250 Matter Stores 280 Matter Capacity 300 Sight Range 16 Terrain Scan Density 10 Evasion (%) 40 Item Schematics ----------------- None Robot Schematics ------------------ None Fabricated ------------ Nothing Alien Tech Used ----------------- None Achievements -------------- None Challenges ------------ None Game ------ Seed CouplerMakeshiftPlating Manual? 0 Play Time 00:09:12 Cumulative 236.1 hours Start 2020.06.04 @ 11:34:44 End 2020.06.04 @ 20:07:17 Sessions 2 Manual Loads 0 Difficulty Rogue Special Mode None Game No. 385 Rogue 385 Adventurer 0 Explorer 0 Win Type - Total 5 Types 3/0/1/1/0/0/0 Lore% 79 Gallery% 80 Achievement% 60 Wizard Run 0 Options --------- ASCII 0 Keyboard 1 Movement Numpad Keybinds 0 Fullscreen 2 Font 18/X11Bold Map View 76x50 Tactical HUD 1 Map Filters NONE Filters NONE Steam 1 RUN: a3bb9ca2-889d-4d94-8ce7-982d35456a37